[Event "Condigne Dutch Open 2018"]
[Site "Dieren"]
[Date "2018.07.27"]
[Round "4"]
[White "Shyaamnikhil P"]
[Black "Ivanisevic, Ivan"]
[Result "1/2-1/2"]
[ECO "A49"]
[WhiteElo "2375"]
[BlackElo "2567"]
[Annotator "ChessBase"]
[PlyCount "119"]
[EventDate "2018.07.24"]
[EventType "swiss"]
[EventCountry "NED"]
[SourceTitle "playchess.com"]
[Source "ChessBase"]
[SourceQuality "1"]
[TimeControl "40/5400+30:1800+30"]

1. Nf3 {[%emt 0:00:00]} Nf6 {[%emt 0:00:06]} 2. g3 {[%emt 0:00:27]} g6 {[%emt 0:00:08]} 3. b3 {[%emt 0:00:12]} Bg7 {[%emt 0:00:07]} 4. Bb2 {[%emt 0:00:05]} c5 {[%emt 0:00:10]} 5. Bg2 {[%emt 0:00:41]} d6 {[%emt 0:01:43]} 6. d4 {[%emt 0:04:18]} cxd4 {[%emt 0:00:08]} 7. Nxd4 {[%emt 0:01:13]} d5 {[%emt 0:00:25]} 8. c4 {[%emt 0:07:23]} dxc4 {[%emt 0:01:12]} 9. bxc4 {[%emt 0:00:12]} O-O {[%emt 0:00:20]} 10. Nd2 {[%emt 0:03:12]} Ng4 {[%emt 0:08:15]} 11. N2b3 {[%emt 0:09:19]} Ne5 {[%emt 0:08:57]} 12. Qc2 {[%emt 0:07:03]} Nbc6 {[%emt 0:03:06]} 13. Nxc6 {[%emt 0:09:18]} bxc6 {[%emt 0:00:57]} 14. f4 {[%emt 0:04:34]} Ng4 {[%emt 0:00:41]} 15. Bxg7 {[%emt 0:00:10]} Kxg7 {[%emt 0:00:04]} 16. Qc3+ {[%emt 0:01:32]} Kg8 {[%emt 0:01:04]} 17. Bxc6 {[%emt 0:14:20]} Rb8 {[%emt 0:00:04]} 18. Bf3 {[%emt 0:00:17]} e5 {[%emt 0:18:51]} 19. h3 {[%emt 0:03:19]} Nf6 {[%emt 0:00:04]} 20. Qxe5 {[%emt 0:03:39]} Bb7 {[%emt 0:04:42]} 21. Rd1 {[%emt 0:17:18]} Qb6 {[%emt 0:01:38]} 22. c5 {[%emt 0:01:18]} Qb4+ {[%emt 0:00:32]} 23. Kf2 {[%emt 0:00:08]} Bxf3 {[%emt 0:00:29]} 24. exf3 {[%emt 0:00:14]} Nh5 {[%emt 0:01:23]} 25. Rhe1 {[%emt 0:00:28]} a5 {[%emt 0:01:15]} 26. c6 {[%emt 0:04:44]} Qb6+ {[%emt 0:10:36]} 27. Nd4 {[%emt 0:00:43]} Ng7 {[%emt 0:00:12]} 28. Rb1 {[%emt 0:04:15]} Qxb1 {[%emt 0:00:23]} 29. Rxb1 {[%emt 0:00:05]} Rxb1 {[%emt 0:00:04]} 30. g4 {[%emt 0:01:28]} Rb2+ {[%emt 0:07:49]} 31. Kg3 {[%emt 0:00:07]} Rxa2 {[%emt 0:00:05]} 32. c7 {[%emt 0:00:10]} Rd2 {[%emt 0:10:48]} 33. Qc5 {[%emt 0:00:23]} Rc8 {[%emt 0:01:22]} 34. Qb6 {[%emt 0:00:10]} Ne8 {[%emt 0:05:24]} 35. Qb8 {[%emt 0:00:42]} Nd6 {[%emt 0:00:14]} 36. Nc6 {[%emt 0:00:22]} Re2 {[%emt 0:00:38]} 37. Na7 {[%emt 0:00:23]} Rf8 {[%emt 0:00:25]} 38. Qd8 {[%emt 0:00:25]} Rd2 {[%emt 0:03:25]} 39. Nc6 {[%emt 0:01:21]} Nf5+ {[%emt 0:06:12]} 40. gxf5 {[%emt 0:00:06]} Rfxd8 {[%emt 0:30:08]} 41. cxd8=Q+ {[%emt 0:34:26]} Rxd8 {[%emt 0:00:08]} 42. Nxd8 {[%emt 0:00:00]} gxf5 {[%emt 0:00:20]} 43. Nc6 {[%emt 0:00:00]} a4 {[%emt 0:00:25]} 44. Ne7+ {[%emt 0:00:00]} Kf8 {[%emt 0:00:00]} 45. Nxf5 {[%emt 0:00:00]} a3 {[%emt 0:00:00]} 46. Nd4 {[%emt 0:00:00]} a2 {[%emt 0:00:00]} 47. Nc2 {[%emt 0:00:00]} Ke7 {[%emt 0:00:00]} 48. Kf2 {[%emt 0:00:00]} Ke6 {[%emt 0:00:00]} 49. Ke2 {[%emt 0:01:16]} Kf5 {[%emt 0:00:00]} 50. Ke3 {[%emt 0:00:06]} Kg6 {[%emt 0:00:00]} 51. Na1 {[%emt 0:01:42]} Kf5 {[%emt 0:00:00]} 52. Nb3 {[%emt 0:01:08]} Kg6 {[%emt 0:00:00]} 53. Na1 {[%emt 0:00:52]} Kf5 {[%emt 0:00:00]} 54. h4 {[%emt 0:00:49]} Kg6 {[%emt 0:00:00]} 55. Kf2 {[%emt 0:00:08]} Kh5 {[%emt 0:00:00]} 56. Kg3 {[%emt 0:00:06]} f5 {[%emt 0:00:00]} 57. Kh3 {[%emt 0:00:06]} Kg6 {[%emt 0:00:00]} 58. Kg3 {[%emt 0:00:03]} Kh5 {[%emt 0:00:00]} 59. Kh3 {[%emt 0:00:03]} Kg6 {[%emt 0:00:00]} 60. Kg3 {[%emt 0:00:03]} 1/2-1/2

[Event "Condigne Dutch Open 2018"]
[Site "Dieren"]
[Date "2018.07.27"]
[Round "4"]
[White "Buckels, Valentin"]
[Black "Van Meegen, Ruud"]
[Result "1-0"]
[ECO "A59"]
[WhiteElo "2353"]
[BlackElo "2222"]
[Annotator "NA"]
[PlyCount "69"]
[EventDate "2018.07.24"]
[EventType "swiss"]
[EventCountry "NED"]
[SourceTitle "playchess.com"]
[Source "ChessBase"]
[SourceQuality "1"]
[TimeControl "40/5400+30:1800+30"]

1. d4 {[%emt 0:00:00]} Nf6 {[%emt 0:00:06]} 2. c4 {[%emt 0:00:00]} c5 {[%emt 0:00:07]} 3. d5 {[%emt 0:00:00]} b5 {[%emt 0:00:17]} 4. cxb5 {[%emt 0:00:00]} a6 {[%emt 0:00:05]} 5. bxa6 {[%emt 0:00:16]} g6 {[%emt 0:00:06]} 6. Nc3 {[%emt 0:00:09]} Bxa6 {[%emt 0:00:06]} 7. e4 {[%emt 0:00:13]} Bxf1 {[%emt 0:00:09]} 8. Kxf1 {[%emt 0:00:05]} d6 {[%emt 0:00:10]} 9. g3 {[%emt 0:00:19]} Bg7 {[%emt 0:00:16]} 10. Nf3 {[%emt 0:00:19]} O-O {[%emt 0:00:13]} 11. Kg2 {[%emt 0:00:04]} Nbd7 {[%emt 0:00:09]} 12. a4 {[%emt 0:00:07]} Ra6 {[%emt 0:01:15]} 13. Qc2 {[%emt 0:01:08]} Qa8 {[%emt 0:00:21]} 14. Ra3 {[%emt 0:00:08]} e6 {[%emt 0:01:15]} 15. dxe6 {[%emt 0:03:00]} fxe6 {[%emt 0:00:06]} 16. Re1 {[%emt 0:06:46]} d5 {[%emt 0:01:26]} 17. exd5 {[%emt 0:00:06]} exd5 {[%emt 0:00:04]} 18. Nb5 {[%emt 0:00:08]} Qb7 {[%emt 0:01:37]} 19. Bf4 {[%emt 0:16:02]} d4 {[%emt 0:09:23]} 20. Nc7 {[%emt 0:07:43]} Rb6 {[%emt 0:03:30]} 21. Qc4+ {[%emt 0:08:19]} Kh8 {[%emt 1:20:19]} 22. Re7 {[%emt 0:20:34]} Rb4 {[%emt 0:00:00]} 23. Qe6 {[%emt 0:00:49]} Rb6 {[%emt 0:00:00]} 24. Qh3 {[%emt 0:00:52]} Rxb2 {[%emt 0:00:00]} 25. Ne6 {[%emt 0:12:00]} Ne4 {[%emt 0:00:00]} 26. Rxg7 {[%emt 0:11:12]} Rxf2+ {[%emt 0:00:00]} 27. Kh1 {[%emt 0:00:08]} Qb1+ {[%emt 0:00:00]} 28. Ng1 {[%emt 0:00:04]} Ndf6 {[%emt 0:00:00]} 29. Be5 {[%emt 0:06:02]} h5 {[%emt 0:00:00]} 30. Rxg6 {[%emt 0:02:15]} Rf7 {[%emt 0:00:00]} 31. Qxh5+ {[%emt 0:01:39]} Rh7 {[%emt 0:00:00]} 32. Rh6 {[%emt 0:00:57]} Rxh2+ {[%emt 0:00:00]} 33. Qxh2 {[%emt 0:01:14]} Nf2+ {[%emt 0:00:00]} 34. Kg2 {[%emt 0:00:17]} Qe4+ {[%emt 0:00:00]} 35. Nf3 {[%emt 0:00:18]} 1-0

[Event "Condigne Dutch Open 2018"]
[Site "Dieren"]
[Date "2018.07.27"]
[Round "4"]
[White "Wiersma, Eelke"]
[Black "Krishnater Kushager"]
[Result "0-1"]
[ECO "C58"]
[WhiteElo "2346"]
[BlackElo "2209"]
[Annotator "NA"]
[PlyCount "44"]
[EventDate "2018.07.24"]
[EventType "swiss"]
[EventCountry "NED"]
[SourceTitle "playchess.com"]
[Source "ChessBase"]
[SourceQuality "1"]
[TimeControl "40/5400+30:1800+30"]

1. e4 {[%emt 0:00:00]} e5 {[%emt 0:00:07]} 2. Nf3 {[%emt 0:00:00]} Nc6 {[%emt 0:00:06]} 3. Bc4 {[%emt 0:00:00]} Nf6 {[%emt 0:00:06]} 4. Ng5 {[%emt 0:00:09]} d5 {[%emt 0:00:05]} 5. exd5 {[%emt 0:00:09]} Na5 {[%emt 0:00:06]} 6. Bb5+ {[%emt 0:00:11]} c6 {[%emt 0:00:06]} 7. dxc6 {[%emt 0:00:09]} bxc6 {[%emt 0:00:05]} 8. Bd3 {[%emt 0:00:09]} h6 {[%emt 0:02:00]} 9. Ne4 {[%emt 0:00:28]} Nd5 {[%emt 0:00:05]} 10. Ng3 {[%emt 0:07:13]} Nf4 {[%emt 0:07:31]} 11. Be4 {[%emt 0:03:40]} f5 {[%emt 0:01:57]} 12. Bf3 {[%emt 0:12:49]} e4 {[%emt 0:03:03]} 13. Nxe4 {[%emt 0:06:56]} fxe4 {[%emt 0:00:18]} 14. Bxe4 {[%emt 0:00:07]} Bd6 {[%emt 0:05:41]} 15. g3 {[%emt 0:05:54]} O-O {[%emt 0:01:10]} 16. gxf4 {[%emt 0:06:19]} Qh4 {[%emt 0:00:45]} 17. d3 {[%emt 0:05:19]} Bg4 {[%emt 0:00:19]} 18. Qd2 {[%emt 0:00:25]} Bxf4 {[%emt 0:00:46]} 19. Qxf4 {[%emt 0:00:08]} Rxf4 {[%emt 0:00:04]} 20. Bxf4 {[%emt 0:00:06]} Qf6 {[%emt 0:01:35]} 21. Bc1 {[%emt 0:06:59]} Rf8 {[%emt 0:00:08]} 22. f3 {[%emt 0:00:06]} Bxf3 {[%emt 0:00:43]} 0-1

[Event "Condigne Dutch Open 2018"]
[Site "Dieren"]
[Date "2018.07.27"]
[Round "4"]
[White "Maatman, Nick"]
[Black "Krysa, Leandro"]
[Result "1-0"]
[ECO "E35"]
[WhiteElo "2345"]
[BlackElo "2533"]
[Annotator "RC"]
[PlyCount "79"]
[EventDate "2018.07.24"]
[EventType "swiss"]
[EventCountry "NED"]
[SourceTitle "playchess.com"]
[Source "ChessBase"]
[SourceQuality "1"]
[TimeControl "40/5400+30:1800+30"]

1. d4 {[%emt 0:00:25]} Nf6 {[%emt 0:02:46]} 2. c4 {[%emt 0:00:04]} e6 {[%emt 0:00:10]} 3. Nc3 {[%emt 0:00:04]} Bb4 {[%emt 0:00:10]} 4. Qc2 {[%emt 0:00:03]} d5 {[%emt 0:00:18]} 5. cxd5 {[%emt 0:00:23]} exd5 {[%emt 0:00:23]} 6. Bg5 {[%emt 0:01:04]} h6 {[%emt 0:00:33]} 7. Bh4 {[%emt 0:01:01]} g5 {[%emt 0:02:11]} 8. Bg3 {[%emt 0:00:17]} Nc6 {[%emt 0:00:03]} 9. e3 {[%emt 0:05:28]} h5 {[%emt 0:00:10]} 10. Bb5 {[%emt 0:29:02]} h4 {[%emt 0:17:20]} 11. Be5 {[%emt 0:01:54]} O-O {[%emt 0:01:11]} 12. Bxc6 {[%emt 0:12:33]} bxc6 {[%emt 0:00:08]} 13. Nge2 {[%emt 0:01:57]} Ne4 {[%emt 0:08:46]} 14. Qa4 {[%emt 0:06:30]} Bxc3+ {[%emt 0:07:15]} 15. Nxc3 {[%emt 0:06:12]} Nxf2 {[%emt 0:28:54]} 16. O-O {[%emt 0:04:40]} Ng4 {[%emt 0:00:12]} 17. Qxc6 {[%emt 0:00:10]} Be6 {[%emt 0:01:49]} 18. Bxc7 {[%emt 0:02:28]} Qe8 {[%emt 0:01:35]} 19. Qd6 {[%emt 0:03:21]} Rc8 {[%emt 0:06:29]} 20. Rae1 {[%emt 0:01:12]} f5 {[%emt 0:03:23]} 21. Nxd5 {[%emt 0:04:15]} Rf7 {[%emt 0:02:11]} 22. e4 {[%emt 0:00:07]} Rd7 {[%emt 0:00:44]} 23. Qa6 {[%emt 0:02:41]} f4 {[%emt 0:05:10]} 24. h3 {[%emt 0:02:14]} Bxd5 {[%emt 0:00:23]} 25. exd5 {[%emt 0:00:19]} Ne3 {[%emt 0:00:32]} 26. d6 {[%emt 0:01:19]} Rcxc7 {[%emt 0:02:33]} 27. dxc7 {[%emt 0:00:11]} Rxc7 {[%emt 0:08:41]} 28. Qd3 {[%emt 0:03:34]} Kg7 {[%emt 0:00:00]} 29. Rc1 {[%emt 0:00:54]} Rd7 {[%emt 0:00:00]} 30. Rfe1 {[%emt 0:00:36]} Qe6 {[%emt 0:00:00]} 31. Rc5 {[%emt 0:00:57]} Kh6 {[%emt 0:00:00]} 32. d5 {[%emt 0:02:48]} Qf7 {[%emt 0:01:21]} 33. Rc6+ {[%emt 0:00:18]} Kg7 {[%emt 0:00:23]} 34. Qd4+ {[%emt 0:00:42]} Kh7 {[%emt 0:00:27]} 35. Qd3+ {[%emt 0:01:03]} Kg7 {[%emt 0:00:04]} 36. Qd4+ {[%emt 0:01:17]} Kh7 {[%emt 0:00:03]} 37. Qe4+ {[%emt 0:00:58]} Kg7 {[%emt 0:00:21]} 38. Qe5+ {[%emt 0:00:08]} Kh7 {[%emt 0:00:09]} 39. Qxg5 {[%emt 0:00:53]} Nf5 {[%emt 0:02:36]} 40. Rf6 {[%emt 0:00:28]} 1-0

[Event "Condigne Dutch Open 2018"]
[Site "Dieren"]
[Date "2018.07.27"]
[Round "4"]
[White "Rajesh, V A V"]
[Black "De Boer, Bas"]
[Result "1-0"]
[ECO "D11"]
[WhiteElo "2309"]
[BlackElo "2139"]
[Annotator "NA"]
[PlyCount "89"]
[EventDate "2018.07.24"]
[EventType "swiss"]
[EventCountry "NED"]
[SourceTitle "playchess.com"]
[Source "ChessBase"]
[SourceQuality "1"]
[TimeControl "40/5400+30:1800+30"]

1. d4 {[%emt 0:00:00]} d5 {[%emt 0:00:07]} 2. c4 {[%emt 0:00:00]} c6 {[%emt 0:00:04]} 3. Nf3 {[%emt 0:00:00]} Nf6 {[%emt 0:00:04]} 4. e3 {[%emt 0:00:09]} Bg4 {[%emt 0:00:36]} 5. h3 {[%emt 0:00:31]} Bh5 {[%emt 0:00:10]} 6. Nc3 {[%emt 0:00:16]} e6 {[%emt 0:00:36]} 7. g4 {[%emt 0:00:31]} Bg6 {[%emt 0:00:09]} 8. Ne5 {[%emt 0:00:05]} Nbd7 {[%emt 0:02:08]} 9. Nxg6 {[%emt 0:01:00]} hxg6 {[%emt 0:00:10]} 10. cxd5 {[%emt 0:00:43]} exd5 {[%emt 0:01:53]} 11. Bg2 {[%emt 0:00:11]} g5 {[%emt 0:02:33]} 12. Qd3 {[%emt 0:00:36]} Be7 {[%emt 0:05:28]} 13. Bd2 {[%emt 0:00:29]} Nf8 {[%emt 0:01:56]} 14. O-O-O {[%emt 0:00:36]} Ng6 {[%emt 0:01:05]} 15. f4 {[%emt 0:01:38]} Nh4 {[%emt 0:04:27]} 16. fxg5 {[%emt 0:03:34]} Nd7 {[%emt 0:02:20]} 17. Qe2 {[%emt 0:05:24]} Nxg2 {[%emt 0:02:38]} 18. Qxg2 {[%emt 0:00:06]} Bxg5 {[%emt 0:00:07]} 19. e4 {[%emt 0:02:54]} Bxd2+ {[%emt 0:01:51]} 20. Rxd2 {[%emt 0:00:03]} dxe4 {[%emt 0:00:37]} 21. Qxe4+ {[%emt 0:00:32]} Qe7 {[%emt 0:00:40]} 22. Re2 {[%emt 0:03:11]} Qxe4 {[%emt 0:01:04]} 23. Nxe4 {[%emt 0:00:15]} O-O {[%emt 0:02:25]} 24. Nd6 {[%emt 0:00:59]} b6 {[%emt 0:03:49]} 25. Rf1 {[%emt 0:02:51]} Nf6 {[%emt 0:02:23]} 26. Re7 {[%emt 0:00:19]} Rfd8 {[%emt 0:01:59]} 27. Nxf7 {[%emt 0:05:04]} Rxd4 {[%emt 0:03:32]} 28. Ng5 {[%emt 0:02:17]} Rd7 {[%emt 0:16:26]} 29. Rxd7 {[%emt 0:00:39]} Nxd7 {[%emt 0:00:02]} 30. Rf7 {[%emt 0:00:13]} Nf8 {[%emt 0:03:09]} 31. Rc7 {[%emt 0:00:08]} c5 {[%emt 0:00:15]} 32. Rb7 {[%emt 0:00:18]} Nh7 {[%emt 0:03:41]} 33. Ne6 {[%emt 0:00:18]} g5 {[%emt 0:00:07]} 34. Rg7+ {[%emt 0:01:12]} Kh8 {[%emt 0:00:20]} 35. Re7 {[%emt 0:00:04]} Kg8 {[%emt 0:03:40]} 36. Kd2 {[%emt 0:00:22]} Rc8 {[%emt 0:05:19]} 37. Rg7+ {[%emt 0:04:00]} Kh8 {[%emt 0:00:14]} 38. Rxa7 {[%emt 0:00:07]} Re8 {[%emt 0:00:10]} 39. Ng7 {[%emt 0:00:13]} Re5 {[%emt 0:01:22]} 40. Nh5 {[%emt 0:00:21]} Nf8 {[%emt 0:31:42]} 41. Ra8 {[%emt 0:30:05]} Kg8 {[%emt 0:00:22]} 42. Ra7 {[%emt 0:01:13]} Rd5+ {[%emt 0:04:17]} 43. Ke3 {[%emt 0:00:55]} Rd1 {[%emt 0:00:32]} 44. Nf6+ {[%emt 0:00:25]} Kh8 {[%emt 0:00:17]} 45. Rf7 {[%emt 0:00:36]} 1-0

[Event "Condigne Dutch Open 2018"]
[Site "Dieren"]
[Date "2018.07.27"]
[Round "4"]
[White "Beukema, Jasper"]
[Black "Godbole, Atharva"]
[Result "1-0"]
[ECO "A47"]
[WhiteElo "2299"]
[BlackElo "2128"]
[Annotator "NA"]
[PlyCount "63"]
[EventDate "2018.07.24"]
[EventType "swiss"]
[EventCountry "NED"]
[SourceTitle "playchess.com"]
[Source "ChessBase"]
[SourceQuality "1"]
[TimeControl "40/5400+30:1800+30"]

1. d4 {[%emt 0:00:37]} Nf6 {[%emt 0:05:22]} 2. Bg5 {[%emt 0:00:20]} e6 {[%emt 0:01:42]} 3. Nd2 {[%emt 0:00:42]} c5 {[%emt 0:02:33]} 4. e3 {[%emt 0:01:53]} b6 {[%emt 0:00:38]} 5. Ngf3 {[%emt 0:00:32]} Bb7 {[%emt 0:01:45]} 6. Bd3 {[%emt 0:00:33]} Be7 {[%emt 0:00:33]} 7. c3 {[%emt 0:01:11]} d6 {[%emt 0:04:26]} 8. e4 {[%emt 0:04:44]} Nbd7 {[%emt 0:04:55]} 9. O-O {[%emt 0:06:40]} O-O {[%emt 0:00:37]} 10. Re1 {[%emt 0:01:59]} Re8 {[%emt 0:04:05]} 11. e5 {[%emt 0:11:42]} dxe5 {[%emt 0:03:33]} 12. dxe5 {[%emt 0:00:10]} Nd5 {[%emt 0:00:12]} 13. Bxe7 {[%emt 0:00:32]} Qxe7 {[%emt 0:00:25]} 14. Be4 {[%emt 0:01:25]} Nf8 {[%emt 0:02:21]} 15. Nc4 {[%emt 0:01:23]} Red8 {[%emt 0:04:08]} 16. Nd6 {[%emt 0:04:25]} f5 {[%emt 0:06:39]} 17. exf6 {[%emt 0:10:41]} Qxd6 {[%emt 0:04:03]} 18. fxg7 {[%emt 0:02:43]} Kxg7 {[%emt 0:00:39]} 19. c4 {[%emt 0:01:15]} Rab8 {[%emt 0:04:11]} 20. cxd5 {[%emt 0:02:11]} exd5 {[%emt 0:00:26]} 21. Bc2 {[%emt 0:01:00]} Re8 {[%emt 0:03:03]} 22. Nh4 {[%emt 0:02:54]} Qf6 {[%emt 0:00:27]} 23. Qg4+ {[%emt 0:20:40]} Kh8 {[%emt 0:01:45]} 24. Qh5 {[%emt 0:04:59]} Bc6 {[%emt 0:02:19]} 25. Nf5 {[%emt 0:05:07]} Qxb2 {[%emt 0:08:41]} 26. Qg5 {[%emt 0:07:13]} Qc3 {[%emt 0:07:48]} 27. Rec1 {[%emt 0:02:21]} Qe5 {[%emt 0:05:02]} 28. f4 {[%emt 0:01:36]} Ne6 {[%emt 0:00:06]} 29. Qh6 {[%emt 0:00:46]} Nxf4 {[%emt 0:00:07]} 30. Ng3 {[%emt 0:01:16]} Qc7 {[%emt 0:06:32]} 31. Qf6+ {[%emt 0:00:09]} Kg8 {[%emt 0:00:16]} 32. Nf5 {[%emt 0:00:33]} 1-0

[Event "Condigne Dutch Open 2018"]
[Site "Dieren"]
[Date "2018.07.27"]
[Round "4"]
[White "Ashwath, R."]
[Black "Van Foreest, Lucas"]
[Result "1/2-1/2"]
[ECO "E13"]
[WhiteElo "2285"]
[BlackElo "2488"]
[Annotator "RC"]
[PlyCount "68"]
[EventDate "2018.07.24"]
[EventType "swiss"]
[EventCountry "NED"]
[SourceTitle "playchess.com"]
[Source "ChessBase"]
[SourceQuality "1"]
[TimeControl "40/5400+30:1800+30"]

1. d4 {[%emt 0:00:00]} Nf6 {[%emt 0:00:03]} 2. c4 {[%emt 0:00:30]} e6 {[%emt 0:00:04]} 3. Nc3 {[%emt 0:00:04]} Bb4 {[%emt 0:00:03]} 4. Nf3 {[%emt 0:00:04]} b6 {[%emt 0:01:53]} 5. Bg5 {[%emt 0:00:14]} h6 {[%emt 0:00:07]} 6. Bh4 {[%emt 0:00:04]} g5 {[%emt 0:00:08]} 7. Bg3 {[%emt 0:00:05]} Ne4 {[%emt 0:00:05]} 8. Qc2 {[%emt 0:01:27]} Bb7 {[%emt 0:00:08]} 9. Nd2 {[%emt 0:00:09]} f5 {[%emt 0:02:28]} 10. f3 {[%emt 0:10:10]} Nxg3 {[%emt 0:02:16]} 11. hxg3 {[%emt 0:00:14]} Qf6 {[%emt 0:03:17]} 12. e3 {[%emt 0:03:33]} Nc6 {[%emt 0:00:09]} 13. O-O-O {[%emt 0:07:51]} O-O-O {[%emt 0:00:06]} 14. a3 {[%emt 0:01:35]} Bxc3 {[%emt 0:06:54]} 15. Qxc3 {[%emt 0:01:14]} h5 {[%emt 0:01:35]} 16. Be2 {[%emt 0:16:04]} Qg7 {[%emt 0:05:39]} 17. Nb1 {[%emt 0:05:45]} Ne7 {[%emt 0:06:03]} 18. d5 {[%emt 0:01:16]} Qxc3+ {[%emt 0:00:18]} 19. Nxc3 {[%emt 0:00:07]} exd5 {[%emt 0:04:24]} 20. cxd5 {[%emt 0:02:28]} d6 {[%emt 0:00:05]} 21. Bd3 {[%emt 0:12:44]} Rdf8 {[%emt 0:02:40]} 22. Rh2 {[%emt 0:04:51]} Rh6 {[%emt 0:05:17]} 23. Rdh1 {[%emt 0:01:38]} Rfh8 {[%emt 0:00:33]} 24. e4 {[%emt 0:04:46]} f4 {[%emt 0:03:49]} 25. gxf4 {[%emt 0:01:28]} gxf4 {[%emt 0:01:19]} 26. Ne2 {[%emt 0:00:12]} Ng6 {[%emt 0:00:06]} 27. Rh4 {[%emt 0:01:54]} Nxh4 {[%emt 0:03:02]} 28. Rxh4 {[%emt 0:00:02]} c6 {[%emt 0:08:09]} 29. dxc6 {[%emt 0:00:26]} Bxc6 {[%emt 0:00:07]} 30. Nxf4 {[%emt 0:00:09]} Kd7 {[%emt 0:00:52]} 31. Kd2 {[%emt 0:03:05]} Ke7 {[%emt 0:00:30]} 32. b4 {[%emt 0:07:23]} Be8 {[%emt 0:00:43]} 33. Nd5+ {[%emt 0:02:17]} Kd8 {[%emt 0:00:25]} 34. Ne3 {[%emt 0:01:44]} Bd7 {[%emt 0:00:12]} 1/2-1/2

[Event "Condigne Dutch Open 2018"]
[Site "Dieren"]
[Date "2018.07.27"]
[Round "4"]
[White "Heemskerk, Wim"]
[Black "Hausrath, Daniel"]
[Result "0-1"]
[ECO "E91"]
[WhiteElo "2240"]
[BlackElo "2495"]
[Annotator "RC"]
[PlyCount "54"]
[EventDate "2018.07.24"]
[EventType "swiss"]
[EventCountry "NED"]
[SourceTitle "playchess.com"]
[Source "ChessBase"]
[SourceQuality "1"]
[TimeControl "40/5400+30:1800+30"]

1. Nf3 {[%emt 0:00:00]} Nf6 {[%emt 0:00:14]} 2. c4 {[%emt 0:00:00]} g6 {[%emt 0:00:24]} 3. Nc3 {[%emt 0:00:14]} Bg7 {[%emt 0:00:06]} 4. e4 {[%emt 0:00:35]} d6 {[%emt 0:00:06]} 5. d4 {[%emt 0:00:07]} O-O {[%emt 0:00:05]} 6. Be2 {[%emt 0:00:07]} c5 {[%emt 0:00:22]} 7. O-O {[%emt 0:01:11]} Nc6 {[%emt 0:05:15]} 8. d5 {[%emt 0:02:05]} Na5 {[%emt 0:01:06]} 9. h3 {[%emt 0:03:58]} e5 {[%emt 0:01:58]} 10. a3 {[%emt 0:09:42]} b6 {[%emt 0:00:23]} 11. Ne1 {[%emt 0:03:59]} Qe7 {[%emt 0:04:22]} 12. b4 {[%emt 0:01:28]} Nb7 {[%emt 0:00:05]} 13. Nd3 {[%emt 0:00:45]} Nd7 {[%emt 0:08:41]} 14. Bd2 {[%emt 0:07:32]} f5 {[%emt 0:03:31]} 15. Bf3 {[%emt 0:09:52]} Nf6 {[%emt 0:03:39]} 16. Re1 {[%emt 0:01:51]} f4 {[%emt 0:19:58]} 17. Rb1 {[%emt 0:05:03]} g5 {[%emt 0:05:31]} 18. Nb5 {[%emt 0:07:17]} Rf7 {[%emt 0:18:00]} 19. a4 {[%emt 0:05:18]} Bf8 {[%emt 0:09:27]} 20. a5 {[%emt 0:04:36]} cxb4 {[%emt 0:01:19]} 21. axb6 {[%emt 0:07:09]} axb6 {[%emt 0:00:30]} 22. Nxb4 {[%emt 0:00:59]} Rg7 {[%emt 0:01:54]} 23. Nc6 {[%emt 0:02:25]} Qe8 {[%emt 0:00:11]} 24. Nba7 {[%emt 0:08:20]} g4 {[%emt 0:03:40]} 25. Nxc8 {[%emt 0:03:14]} gxf3 {[%emt 0:00:56]} 26. Nxb6 {[%emt 0:01:35]} Rxg2+ {[%emt 0:00:17]} 27. Kf1 {[%emt 0:00:06]} Rg1+ {[%emt 0:00:14]} 0-1

[Event "Condigne Dutch Open 2018"]
[Site "Dieren"]
[Date "2018.07.27"]
[Round "4"]
[White "De Jong, Tom"]
[Black "Maris, Ivo"]
[Result "1-0"]
[ECO "B01"]
[WhiteElo "2201"]
[BlackElo "2342"]
[Annotator "NA"]
[PlyCount "67"]
[EventDate "2018.07.24"]
[EventType "swiss"]
[EventCountry "NED"]
[SourceTitle "playchess.com"]
[Source "ChessBase"]
[SourceQuality "1"]
[TimeControl "40/5400+30:1800+30"]

1. e4 {[%emt 0:00:00]} d5 {[%emt 0:01:57]} 2. exd5 {[%emt 0:00:00]} Nf6 {[%emt 0:00:03]} 3. d4 {[%emt 0:02:35]} Bg4 {[%emt 0:01:02]} 4. Nf3 {[%emt 0:05:04]} Qxd5 {[%emt 0:00:45]} 5. Be2 {[%emt 0:00:34]} Nc6 {[%emt 0:01:31]} 6. c4 {[%emt 0:04:12]} Qh5 {[%emt 0:04:30]} 7. Nc3 {[%emt 0:05:25]} O-O-O {[%emt 0:01:05]} 8. Be3 {[%emt 0:24:59]} e5 {[%emt 0:01:55]} 9. d5 {[%emt 0:05:24]} e4 {[%emt 0:01:06]} 10. Qa4 {[%emt 0:07:06]} exf3 {[%emt 0:02:55]} 11. gxf3 {[%emt 0:05:33]} Bxf3 {[%emt 0:03:39]} 12. dxc6 {[%emt 0:00:17]} Bxc6 {[%emt 0:00:39]} 13. Qxa7 {[%emt 0:04:09]} Qh4 {[%emt 0:02:25]} 14. Rg1 {[%emt 0:02:45]} Qxh2 {[%emt 0:01:15]} 15. Qa8+ {[%emt 0:01:02]} Kd7 {[%emt 0:00:06]} 16. O-O-O+ {[%emt 0:00:10]} Bd6 {[%emt 0:00:19]} 17. Qa5 {[%emt 0:01:23]} Ke7 {[%emt 0:02:28]} 18. Rxg7 {[%emt 0:04:49]} b6 {[%emt 0:01:45]} 19. Qf5 {[%emt 0:02:18]} Qe5 {[%emt 0:01:30]} 20. Qh3 {[%emt 0:07:41]} Bb4 {[%emt 0:03:26]} 21. Nb5 {[%emt 0:09:11]} Rxd1+ {[%emt 0:12:55]} 22. Bxd1 {[%emt 0:00:03]} Bxb5 {[%emt 0:00:06]} 23. cxb5 {[%emt 0:00:35]} Rd8 {[%emt 0:01:11]} 24. Bb3 {[%emt 0:01:40]} Rf8 {[%emt 0:04:48]} 25. Bg5 {[%emt 0:03:54]} Qc5+ {[%emt 0:00:53]} 26. Kb1 {[%emt 0:00:25]} Qxf2 {[%emt 0:00:22]} 27. Qe6+ {[%emt 0:00:16]} Kd8 {[%emt 0:00:16]} 28. Bxf6+ {[%emt 0:00:05]} Be7 {[%emt 0:00:12]} 29. Bxe7+ {[%emt 0:00:13]} Ke8 {[%emt 0:00:02]} 30. Qe5 {[%emt 0:02:14]} Qf1+ {[%emt 0:00:21]} 31. Kc2 {[%emt 0:00:03]} Qf2+ {[%emt 0:00:06]} 32. Kc3 {[%emt 0:00:10]} Qf3+ {[%emt 0:00:06]} 33. Kb4 {[%emt 0:00:41]} f6 {[%emt 0:00:11]} 34. Bxf6# {[%emt 0:00:29]} 1-0